[Event "SWVG Arnold Classic Prestige All 2019"]
[Site "Sandton"]
[Date "2019.05.19"]
[Round "8.5"]
[White "Oatlhotse, Providence"]
[Black "Smit, Devon"]
[Result "1-0"]
[ECO "E97"]
[WhiteElo "2289"]
[BlackElo "1743"]
[Annotator "NA RC"]
[PlyCount "71"]
[EventDate "2019.05.18"]
[EventType "swiss"]
[EventCountry "RSA"]
[SourceTitle "playchess.com"]
[Source "ChessBase"]
[SourceQuality "1"]
[TimeControl "1500+10"]

{[%evp 16,71,67,41,50,43,41,22,57,26,58,53,54,62,56,52,67,77,50,60,75,32767,128,77,90,87,156,32767,32767,32767,32767,146,146,144,121,107,107,32767,122,122,133,160,194,214,207,225,216,32767,741,32767,729,854,32767,911,910,32767,29990,29991]} 1. d4 {[%emt 0:00:12]} Nf6 {[%emt 0:00:00]} 2. c4 {[%emt 0:00:01]} g6 {[%emt 0:00:00]} 3. Nc3 {[%emt 0:00:01]} Bg7 {[%emt 0:00:00]} 4. e4 {[%emt 0:00:01]} d6 {[%emt 0:00:00]} 5. Be2 {[%emt 0:00:02]} O-O {[%emt 0:00:04]} 6. Nf3 {[%emt 0:00:01]} e5 {[%emt 0:00:03]} 7. O-O {[%emt 0:00:02]} Nc6 {[%emt 0:00:03]} 8. d5 {[%emt 0:00:00]} Ne7 {[%emt 0:00:04]} 9. Rb1 {[%emt 0:00:01]} Nd7 {[%emt 0:00:11] E97: King's Indian: Classical Main Line (6...e5 7 0-0 Nc6): 8 Be3 and 8 d5 Ne7, not 9 Ne1} 10. b4 {[%emt 0:00:03]} a5 {[%emt 0:00:07]} 11. a3 {[%emt 0:00:02]} f5 {[%emt 0:00:19]} (11... Kh8 12. Be3 Ng8 13. c5 axb4 14. axb4 f5 15. Ng5 Nxc5 16. bxc5 f4 17. Bd2 Qxg5 {1-0 (41) Nikolaidis,I (2493)-Jankovic,A (2567) Leros 2010}) 12. Ng5 {[%emt 0:00:02]} Nf6 $1 {[%emt 0:00:07]} 13. f3 $146 {[%emt 0:00:01]} ({Predecessor:} 13. f4 h6 14. fxe5 dxe5 15. Nf3 Nxe4 16. Nxe4 fxe4 17. Nd2 {0-1 (36) Petrovskis,O (1862)-Stremavicius,T (2002) Palanga 2011}) 13... f4 {[%emt 0:00:43]} 14. c5 {[%emt 0:00:58]} h6 {[%emt 0:01:46]} 15. Ne6 {[%emt 0:01:30]} Bxe6 $1 {[%emt 0:00:04]} 16. dxe6 {[%emt 0:00:01]} d5 {[%emt 0:00:08]} 17. exd5 {[%emt 0:00:23]} Nexd5 {[%emt 0:00:18]} 18. Nxd5 {[%emt 0:02:19]} Qxd5 {[%emt 0:00:46]} (18... Nxd5 $14 19. Qb3 c6) 19. Qc2 {[%emt 0:00:52]} ({White should try} 19. Qxd5 Nxd5 20. Bc4) 19... Qxe6 {[%emt 0:03:00]} 20. Qxg6 {[%emt 0:00:56]} Qf7 {[%emt 0:00:06]} (20... Kh8 $142) 21. Qxf7+ {[%emt 0:01:30]} Kxf7 {[%emt 0:00:01]} 22. Bc4+ {[%emt 0:00:02]} Ke7 {[%emt 0:00:04]} 23. Re1 {[%emt 0:00:51]} Nd7 {[%emt 0:00:16]} 24. bxa5 {[%emt 0:01:01]} Rxa5 {[%emt 0:00:45]} 25. Bd2 {[%emt 0:00:02]} Ra7 {[%emt 0:01:35]} 26. Bb4 {[%emt 0:00:04]} c6 {[%emt 0:00:29]} 27. Rbd1 {[%emt 0:00:01]} Rd8 {[%emt 0:00:59] [#]} 28. Rd4 $1 {[%emt 0:01:31]} Nf8 $18 {[%emt 0:01:58]} (28... Rf8 $16 {was worth a try.} 29. Rd6 Rf6) 29. Rxf4 $1 {[%emt 0:02:59]} Ne6 {[%emt 0:00:01]} 30. Rg4 {[%emt 0:00:09]} Bf6 {[%emt 0:01:08]} 31. f4 {[%emt 0:01:31]} Nd4 $2 {[%emt 0:04:26]} (31... Rd4 $16 32. fxe5 Bh4 33. Rxd4 Nxd4) 32. fxe5 {[%emt 0:00:35]} Bg5 {[%emt 0:00:03]} 33. h4 {[%emt 0:00:24]} Nc2 {[%emt 0:00:50]} 34. hxg5 {[%emt 0:01:28]} Nxe1 {[%emt 0:00:13]} 35. gxh6 {[%emt 0:00:07]} Nc2 {[%emt 0:00:38]} 36. Rg7+ {[%emt 0:00:12]} 1-0

[Event "SWVG Arnold Classic Prestige All 2019"]
[Site "Sandton"]
[Date "2019.05.19"]
[Round "8.7"]
[White "Mthunzi, Brighton"]
[Black "Masiya, Mfundo"]
[Result "1/2-1/2"]
[ECO "D03"]
[WhiteElo "2006"]
[BlackElo "1977"]
[Annotator "NA RC"]
[PlyCount "87"]
[EventDate "2019.05.18"]
[EventType "swiss"]
[EventCountry "RSA"]
[SourceTitle "playchess.com"]
[Source "ChessBase"]
[SourceQuality "1"]
[TimeControl "1500+10"]

1. d4 {[%emt 0:00:00]} Nf6 {[%emt 0:00:00]} 2. Nf3 {[%emt 0:00:00]} g6 {[%emt 0:00:00]} 3. Bg5 {[%emt 0:00:34]} Bg7 {[%emt 0:00:00]} 4. Nbd2 {[%emt 0:00:42]} d5 {[%emt 0:00:00]} 5. e3 {[%emt 0:01:29]} O-O {[%emt 0:00:01]} 6. Bd3 {[%emt 0:00:28]} c5 {[%emt 0:00:10]} 7. c3 {[%emt 0:00:01]} Nc6 {[%emt 0:00:27]} 8. O-O {[%emt 0:00:39]} b6 {[%emt 0:01:16]} 9. Re1 {[%emt 0:01:30] D03: 1 d4 d5 2 Nf3 Nf6 3 Bg5, including Torre Attack with early ...d5} Bb7 {[%emt 0:01:33]} (9... h6 10. Bxf6 Bxf6 11. e4 e6 12. e5 Be7 13. a3 a5 14. Qe2 Kg7 15. Nf1 a4 16. Ne3 Bd7 {½-½ (36) Bareev,E (2650)-Gledura,B (2615) Wijk aan Zee 2019}) 10. h3 {[%emt 0:00:50]} Re8 {[%emt 0:02:50]} 11. Bb5 $146 {[%emt 0:00:27]} ({Predecessor:} 11. a4 Rc8 12. Qb1 Nd7 {½-½ (12) Luebeck,S (2005)-Schulz,W (2049) Buesum 2016}) 11... a6 {[%emt 0:00:22]} 12. Bxc6 {[%emt 0:00:04]} Bxc6 {[%emt 0:00:01]} 13. Ne5 {[%emt 0:02:07]} Bb7 {[%emt 0:00:02]} 14. Qf3 {[%emt 0:02:48]} Rf8 {[%emt 0:00:44]} 15. Bf4 {[%emt 0:02:16]} Nd7 {[%emt 0:00:19]} 16. Qg4 {[%emt 0:01:13]} Nxe5 {[%emt 0:01:59]} 17. dxe5 {[%emt 0:00:03]} Qc8 {[%emt 0:02:23]} 18. Qh4 {[%emt 0:00:09]} Re8 {[%emt 0:02:37]} 19. Nf3 {[%emt 0:00:13]} f6 {[%emt 0:02:01]} 20. Bh6 {[%emt 0:01:11]} Qf5 {[%emt 0:00:15]} 21. Bxg7 {[%emt 0:00:19]} Kxg7 {[%emt 0:00:09]} 22. Qg3 {[%emt 0:00:13]} Rac8 {[%emt 0:01:39]} 23. Rad1 {[%emt 0:00:16]} Red8 {[%emt 0:00:35]} 24. Rd2 {[%emt 0:00:52]} Rd7 {[%emt 0:01:00]} 25. Red1 {[%emt 0:01:30]} Rcd8 {[%emt 0:00:02]} 26. Kh2 {[%emt 0:02:36]} b5 {[%emt 0:00:40]} 27. b4 {[%emt 0:00:13]} d4 {[%emt 0:01:11]} 28. exd4 {[%emt 0:00:42]} Bxf3 {[%emt 0:00:05]} 29. exf6+ {[%emt 0:00:05]} exf6 {[%emt 0:01:44]} 30. Qxf3 {[%emt 0:00:01]} Qxf3 {[%emt 0:00:11]} 31. gxf3 {[%emt 0:00:01]} cxb4 {[%emt 0:00:10]} 32. cxb4 {[%emt 0:00:02]} Rd5 {[%emt 0:00:04]} 33. Kg3 {[%emt 0:00:10]} f5 {[%emt 0:00:22]} 34. f4 {[%emt 0:00:49]} Rc8 {[%emt 0:00:28]} 35. Rd3 {[%emt 0:00:46]} Kf6 {[%emt 0:00:38]} 36. a3 {[%emt 0:00:11]} h6 {[%emt 0:00:03]} 37. Re1 {[%emt 0:00:11]} Rc4 {[%emt 0:00:30]} 38. Rde3 {[%emt 0:00:09]} Rc6 {[%emt 0:00:25]} 39. Rd3 {[%emt 0:00:15]} Rcd6 {[%emt 0:00:04]} 40. Red1 {[%emt 0:00:18]} Rc6 {[%emt 0:00:01]} 41. Kf3 {[%emt 0:00:13]} g5 {[%emt 0:00:17]} 42. Re1 {[%emt 0:00:42]} Rcd6 {[%emt 0:00:15]} 43. Rc1 $11 {[%emt 0:01:00]} gxf4 {[%emt 0:01:30]} 44. Rcd1 {[%emt 0:00:02] Ke5 [%clk 0:00:00] Ke4+} 1/2-1/2

[Event "SWVG Arnold Classic Prestige All 2019"]
[Site "Sandton"]
[Date "2019.05.19"]
[Round "8.8"]
[White "Bhawoodien, Shabir Hussain"]
[Black "Khumalo, Keith"]
[Result "0-1"]
[ECO "C11"]
[WhiteElo "2020"]
[BlackElo "2086"]
[Annotator "NA RC"]
[PlyCount "86"]
[EventDate "2019.05.18"]
[EventType "swiss"]
[EventCountry "RSA"]
[SourceTitle "playchess.com"]
[Source "ChessBase"]
[SourceQuality "1"]
[TimeControl "1500+10"]

1. e4 {[%emt 0:00:00]} e6 {[%emt 0:00:47]} 2. Nf3 {[%emt 0:00:00]} d5 {[%emt 0:00:05]} 3. Nc3 {[%emt 0:00:00]} Nf6 {[%emt 0:00:02]} 4. e5 {[%emt 0:00:00]} Nfd7 {[%emt 0:00:01]} 5. d4 {[%emt 0:00:00]} c5 {[%emt 0:00:01]} 6. dxc5 {[%emt 0:00:01]} Nc6 {[%emt 0:00:01]} 7. Bf4 {[%emt 0:00:01]} Nxc5 {[%emt 0:00:01]} 8. a3 {[%emt 0:00:49]} a6 {[%emt 0:00:31] C11: French: Classical System: 4 e5 and 4 Bg5 dxe4} 9. b4 {[%emt 0:00:40]} Nd7 {[%emt 0:00:01]} 10. Bd3 {[%emt 0:00:01]} Be7 {[%emt 0:00:01]} (10... f6 11. exf6 Qxf6 12. Qd2 Nxb4 13. O-O Nxd3 14. cxd3 Bc5 15. d4 Ba7 16. Bd6 {1-0 (34) Gao,R (2543)-Yu,S (2479) Beijing 2017}) 11. O-O {[%emt 0:00:02]} O-O {[%emt 0:25:19]} 12. Re1 $146 {[%emt 0:00:10]} ({Predecessor:} 12. Nd2 Ndxe5 13. Bxh7+ Kxh7 14. Qh5+ Kg8 15. Bxe5 Nxe5 16. Qxe5 {0-1 (35) Gevorgyan,N-Voronaya,E Riga 2018}) 12... f6 {[%emt 0:00:00]} 13. Qd2 {[%emt 0:06:58]} (13. exf6 $17 {might work better.} Bxf6 14. Bd2) 13... fxe5 {[%emt 0:00:00]} 14. Nxe5 {[%emt 0:00:51]} Ndxe5 {[%emt 0:00:00]} 15. Bxe5 {[%emt 0:00:08]} Nxe5 {[%emt 0:00:00]} 16. Rxe5 {[%emt 0:00:02]} Bf6 {[%emt 0:00:00]} 17. Rh5 {[%emt 0:07:25]} g6 {[%emt 0:00:00]} 18. Rh3 {[%emt 0:00:30]} e5 {[%emt 0:00:00]} 19. Rg3 {[%emt 0:01:54]} e4 {[%emt 0:00:00]} 20. Bf1 {[%emt 0:02:10]} Bh4 {[%emt 0:00:00]} 21. Nxd5 {[%emt 0:00:19]} Bxg3 {[%emt 0:00:00]} 22. hxg3 {[%emt 0:00:07]} Be6 {[%emt 0:00:00]} 23. c4 {[%emt 0:00:50]} Bxd5 {[%emt 0:00:00]} 24. cxd5 {[%emt 0:00:02]} Qb6 {[%emt 0:00:00]} 25. d6 {[%emt 0:00:32]} Rf6 {[%emt 0:00:00]} 26. Bc4+ {[%emt 0:00:50]} Kg7 {[%emt 0:00:00]} 27. d7 {[%emt 0:01:04]} (27. Rd1 $11) 27... Raf8 {[%emt 0:00:00]} 28. Rf1 $2 {[%emt 0:01:23]} (28. Rd1 $11 {and White stays safe.} Rxf2 29. Qc3+ Kh6 30. Kh2 (30. d8=Q {leads to mate.} Rf1+ 31. Kh2 Qg1+ 32. Kh3 Qh1+ 33. Kg4 Qh5#)) 28... Qd6 {[%emt 0:00:00]} 29. Qe2 {[%emt 0:00:14]} Qxd7 {[%emt 0:00:00]} 30. Qxe4 {[%emt 0:00:01]} Re8 {[%emt 0:00:00]} 31. Qh4 $2 {[%emt 0:00:52]} (31. Qc2 $17) 31... Qd2 {[%emt 0:00:00]} 32. g4 $2 {[%emt 0:00:32]} (32. b5) 32... h6 {[%emt 0:00:00]} 33. Qg3 {[%emt 0:00:05]} Rf4 {[%emt 0:00:00]} 34. Bb3 {[%emt 0:00:08]} Ree4 {[%emt 0:00:00]} 35. Rd1 {[%emt 0:00:06]} Re1+ {[%emt 0:00:00]} 36. Kh2 {[%emt 0:01:27]} (36. Rxe1 $142 Qxe1+ 37. Kh2 Qxf2 38. Qc3+ Qd4 39. Qc7+ Kf6 40. Qxb7) 36... Rxd1 {[%emt 0:00:00]} 37. Bxd1 {[%emt 0:00:01]} g5 {[%emt 0:00:00]} 38. Qb3 {[%emt 0:00:07]} Rxf2 {[%emt 0:00:00]} 39. Bf3 {[%emt 0:00:07]} Rf1 {[%emt 0:00:00]} 40. Qe6 {[%emt 0:00:24]} Qf4+ $19 {[%emt 0:00:00]} 41. g3 {[%emt 0:00:05]} Qxf3 {[%emt 0:00:00]} 42. Qd7+ {[%emt 0:00:22]} Qf7 {[%emt 0:00:00]} 43. Qd4+ {[%emt 0:00:03]} Rf6 {[%emt 0:00:00]} 0-1

[Event "SWVG Arnold Classic Prestige All 2019"]
[Site "Sandton"]
[Date "2019.05.19"]
[Round "8.9"]
[White "Molepo, Maropeng Quintallio"]
[Black "Sithole, Collins"]
[Result "0-1"]
[ECO "B81"]
[WhiteElo "1723"]
[BlackElo "1861"]
[Annotator "NA RC"]
[PlyCount "122"]
[EventDate "2019.05.18"]
[EventType "swiss"]
[EventCountry "RSA"]
[SourceTitle "playchess.com"]
[Source "ChessBase"]
[SourceQuality "1"]
[TimeControl "1500+10"]

1. e4 {[%emt 0:00:00]} c5 {[%emt 0:00:00]} 2. Nf3 {[%emt 0:00:00]} e6 {[%emt 0:00:00]} 3. d4 {[%emt 0:00:00]} cxd4 {[%emt 0:00:00]} 4. Nxd4 {[%emt 0:00:00]} Nf6 {[%emt 0:00:02]} 5. Nc3 {[%emt 0:00:12]} d6 {[%emt 0:00:02]} 6. h3 {[%emt 0:00:59]} a6 {[%emt 0:00:38]} 7. g4 {[%emt 0:00:02]} Be7 {[%emt 0:00:14]} 8. Bg2 {[%emt 0:00:02]} Nc6 {[%emt 0:00:07]} 9. Be3 {[%emt 0:00:07]} Qa5 {[%emt 0:01:03] B81: Sicilian Scheveningen: Keres Attack} 10. Nb3 {[%emt 0:03:11]} (10. f4 $16) 10... Qc7 {[%emt 0:00:20]} 11. Qe2 {[%emt 0:00:10]} Ne5 $146 {[%emt 0:00:23]} ({Predecessor:} 11... b5 12. a3 Bb7 13. O-O Ne5 14. Nd2 Rc8 {0-1 (35) Warakomska,A (2274)-Swiercz,D (2634) Warsaw 2015}) 12. O-O-O {[%emt 0:01:20]} Nc4 {[%emt 0:00:16]} 13. Bg5 {[%emt 0:00:05]} Bd7 {[%emt 0:00:32]} 14. f4 {[%emt 0:01:42]} (14. Nd2 $11 {keeps the balance.} Bb5 15. a4 (15. Nxb5 axb5 16. a3 O-O $11) 15... Nxd2 16. Nxb5 (16. axb5 Nc4 $15) (16. Qxd2 Bc6 $11) 16... axb5 17. Qxb5+ (17. Bxd2 bxa4 18. Bb4 O-O $17) 17... Qd7 18. Qxd7+ Nxd7 19. Bxd2) 14... Rc8 {[%emt 0:00:02]} 15. Qd3 {[%emt 0:00:36]} h6 {[%emt 0:00:14]} 16. Bh4 {[%emt 0:04:30]} b5 {[%emt 0:00:56]} 17. Bf2 $2 {[%emt 0:03:37]} (17. Nd2 $15) 17... b4 {[%emt 0:00:53]} 18. Ne2 {[%emt 0:00:05]} a5 {[%emt 0:00:16]} 19. Nd2 {[%emt 0:00:54] [#]} Bb5 $1 {[%emt 0:00:59]} 20. Qb3 {[%emt 0:02:11]} (20. Nxc4 $142 Bxc4 21. Qe3) 20... d5 {[%emt 0:01:40]} 21. a4 {[%emt 0:00:33]} Ba6 {[%emt 0:03:30]} 22. exd5 {[%emt 0:00:36]} exd5 {[%emt 0:00:26]} 23. g5 {[%emt 0:01:00]} hxg5 {[%emt 0:00:50]} 24. fxg5 {[%emt 0:00:03]} Nxd2 {[%emt 0:00:33]} 25. Rxd2 {[%emt 0:00:41]} Ne4 {[%emt 0:00:32]} 26. Bxe4 {[%emt 0:01:28]} dxe4 {[%emt 0:00:06]} 27. Qe3 $2 {[%emt 0:00:06]} (27. Rg1 $1 $15) 27... O-O {[%emt 0:00:18]} 28. Bg3 {[%emt 0:00:39]} Qc6 {[%emt 0:00:04]} 29. Nd4 {[%emt 0:00:04]} Qc5 {[%emt 0:00:06]} 30. h4 {[%emt 0:00:20]} Rfe8 {[%emt 0:00:55]} 31. Kb1 {[%emt 0:00:20]} Bc4 {[%emt 0:00:15]} 32. Re1 {[%emt 0:00:11]} Rcd8 {[%emt 0:01:02]} 33. b3 {[%emt 0:00:21]} Bd5 {[%emt 0:02:12]} 34. Nf5 {[%emt 0:00:19]} Ba8 {[%emt 0:00:24]} 35. Nxe7+ {[%emt 0:00:24]} Qxe7 $16 {[%emt 0:00:01]} 36. Red1 {[%emt 0:00:24]} Rxd2 {[%emt 0:00:15]} 37. Rxd2 {[%emt 0:00:02]} Rc8 {[%emt 0:00:01]} 38. Rh2 {[%emt 0:00:37]} Qc5 {[%emt 0:01:09]} 39. Qxc5 {[%emt 0:00:27]} Rxc5 {[%emt 0:00:02]} 40. Re2 {[%emt 0:00:09]} Rc3 {[%emt 0:00:07]} 41. Bf2 {[%emt 0:00:03]} f5 {[%emt 0:00:26]} 42. gxf6 {[%emt 0:00:25]} gxf6 {[%emt 0:00:03]} 43. Re3 {[%emt 0:00:02]} Rc7 {[%emt 0:01:23]} 44. Rg3+ {[%emt 0:00:54]} Kh7 {[%emt 0:00:12]} 45. Bb6 {[%emt 0:00:02]} Rf7 {[%emt 0:00:32]} 46. Kc1 {[%emt 0:00:33]} f5 {[%emt 0:00:02]} 47. Kd2 {[%emt 0:00:02]} f4 {[%emt 0:00:02]} 48. Rg5 {[%emt 0:00:05]} Rd7+ {[%emt 0:01:43]} 49. Ke1 {[%emt 0:00:07]} e3 {[%emt 0:01:16]} 50. Rxa5 {[%emt 0:00:10]} Bf3 {[%emt 0:00:04]} 51. Ra7 {[%emt 0:00:18]} Rxa7 {[%emt 0:01:20]} 52. Bxa7 {[%emt 0:00:01]} Kg6 {[%emt 0:00:00]} 53. Bb8 {[%emt 0:00:36]} Kf5 {[%emt 0:00:02]} 54. Bd6 {[%emt 0:00:01]} Be4 {[%emt 0:00:17]} 55. Bxb4 {[%emt 0:00:03]} Bxc2 {[%emt 0:00:06]} 56. a5 {[%emt 0:00:08]} Bxb3 {[%emt 0:00:19]} 57. h5 {[%emt 0:00:04]} Bc4 {[%emt 0:00:00]} 58. h6 {[%emt 0:00:02]} f3 {[%emt 0:00:07]} 59. Kd1 {[%emt 0:00:31]} Kg6 {[%emt 0:00:40]} 60. Bc5 {[%emt 0:00:11]} f2 {[%emt 0:00:04]} 61. Bxe3 {[%emt 0:00:08]} f1=Q+ {[%emt 0:00:02]} 0-1

[Event "SWVG Arnold Classic Prestige All 2019"]
[Site "Sandton"]
[Date "2019.05.19"]
[Round "8.10"]
[White "Mpya, Tshediso M"]
[Black "Swartz, David"]
[Result "1-0"]
[ECO "D02"]
[WhiteElo "1936"]
[BlackElo "1756"]
[Annotator "NA RC"]
[PlyCount "122"]
[EventDate "2019.05.18"]
[EventType "swiss"]
[EventCountry "RSA"]
[SourceTitle "playchess.com"]
[Source "ChessBase"]
[SourceQuality "1"]
[TimeControl "1500+10"]

1. d4 {[%emt 0:00:00]} d5 {[%emt 0:00:00]} 2. Bf4 {[%emt 0:00:00]} Bf5 {[%emt 0:00:00]} 3. e3 {[%emt 0:00:00]} Nf6 {[%emt 0:00:06]} 4. Nf3 {[%emt 0:00:02]} e6 {[%emt 0:00:01]} 5. h3 {[%emt 0:00:04]} h6 {[%emt 0:00:05]} (5... Bd6 6. Bxd6 Qxd6 7. c3 O-O 8. Bd3 Bg6 9. Bxg6 hxg6 10. Nbd2 Nbd7 11. O-O c5 12. Qe2 Rac8 13. Rac1 Nb6 {½-½ (29) Domingo Nunez,A (2339)-Domingo Nunez,R (2308) Port de Pollenca 2018}) 6. Bd3 {[%emt 0:00:04] D02: 1 d4 d5 2 Nf3 sidelines, including 2...Nf6 3 g3 and 2...Nf6 3 Bf4} Bxd3 {[%emt 0:00:03]} 7. Qxd3 {[%emt 0:00:02]} Bd6 {[%emt 0:00:02]} 8. Ne5 {[%emt 0:00:36]} Bxe5 $146 {[%emt 0:00:33]} ({Predecessor:} 8... c6 9. Nd2 Bxe5 10. Bxe5 Nbd7 11. Bd6 Nb6 12. Ba3 Qc7 13. c4 dxc4 14. Nxc4 Nxc4 15. Qxc4 {½-½ (56) Wuensch,U (2047)-Riedl,M (2022) Bayerisch Eisenstein 2016}) 9. Bxe5 {[%emt 0:00:20]} O-O {[%emt 0:00:33]} 10. O-O {[%emt 0:00:08]} Nbd7 {[%emt 0:00:01]} 11. Bh2 {[%emt 0:00:02]} c5 {[%emt 0:00:05]} 12. c3 {[%emt 0:00:01]} Re8 {[%emt 0:02:08]} 13. Nd2 {[%emt 0:00:15]} Qe7 {[%emt 0:00:55]} 14. Nf3 {[%emt 0:00:21]} Ne4 {[%emt 0:00:21]} 15. Ne5 {[%emt 0:00:14]} Nxe5 {[%emt 0:00:33]} 16. Bxe5 {[%emt 0:00:09]} c4 {[%emt 0:00:10]} 17. Qc2 {[%emt 0:00:05]} Rac8 {[%emt 0:01:25]} 18. f3 {[%emt 0:00:10]} Nf6 {[%emt 0:02:36]} 19. e4 {[%emt 0:00:09]} Nd7 {[%emt 0:00:01]} 20. Bh2 {[%emt 0:00:05]} Qg5 {[%emt 0:00:42]} 21. f4 {[%emt 0:00:46]} Qe7 {[%emt 0:00:32]} 22. Rae1 {[%emt 0:00:24]} Qf6 {[%emt 0:00:21]} 23. e5 {[%emt 0:00:09]} Qg6 {[%emt 0:00:46]} 24. Qa4 {[%emt 0:00:44]} Rc6 {[%emt 0:01:16]} (24... Nb8 $11) 25. Qxa7 {[%emt 0:01:08]} Rb8 {[%emt 0:00:01]} 26. Qa4 {[%emt 0:00:07]} Nf8 {[%emt 0:01:50]} ({Black should try} 26... Nb6 $14 27. Qa7) 27. f5 {[%emt 0:00:38]} Qh5 {[%emt 0:01:23]} 28. Qc2 {[%emt 0:00:37]} b5 {[%emt 0:00:27]} 29. a3 {[%emt 0:00:08]} Rb7 {[%emt 0:00:21]} 30. Re3 {[%emt 0:00:06]} Nh7 {[%emt 0:00:51]} 31. g4 {[%emt 0:00:14]} Qg5 {[%emt 0:00:01]} 32. Ref3 {[%emt 0:00:12]} Qh4 {[%emt 0:00:14]} 33. Bf4 {[%emt 0:01:45]} h5 {[%emt 0:01:37]} 34. Qg2 {[%emt 0:00:45]} Ng5 {[%emt 0:00:22]} 35. Bxg5 {[%emt 0:00:15]} Qxg5 {[%emt 0:00:01]} 36. f6 {[%emt 0:00:15]} g6 {[%emt 0:02:15]} 37. gxh5 {[%emt 0:00:05]} Qxh5 {[%emt 0:00:04]} 38. Rg3 {[%emt 0:01:17]} Rc8 $2 {[%emt 0:00:41]} (38... b4 39. cxb4 (39. axb4 Ra6 $18) 39... Qh4) 39. Rg5 {[%emt 0:00:05]} Qh6 {[%emt 0:00:16]} 40. Rf4 {[%emt 0:00:07]} b4 {[%emt 0:00:11]} 41. axb4 {[%emt 0:00:07]} Ra8 {[%emt 0:00:24]} 42. Rfg4 {[%emt 0:00:20]} Kh7 {[%emt 0:00:15]} (42... Kf8 $142 43. Qg3 Ke8) 43. Qf2 {[%emt 0:00:15]} Ra1+ {[%emt 0:00:23]} 44. Kh2 {[%emt 0:00:02]} Kg8 {[%emt 0:00:01]} 45. Qg3 {[%emt 0:00:11]} Ra2 {[%emt 0:02:28]} 46. Rxg6+ {[%emt 0:00:39]} fxg6 {[%emt 0:00:02]} 47. Rxg6+ {[%emt 0:00:02]} Qxg6 {[%emt 0:00:00]} 48. Qxg6+ {[%emt 0:00:01]} Kf8 {[%emt 0:00:01]} 49. Qh6+ {[%emt 0:00:21]} (49. Qh5 $142 Rba7 50. Qh8+ Kf7 51. Qg7+ Ke8 52. Qg8+ {[%mdl 64] Double Attack} Kd7 53. Qf7+ Kd8 54. Qxe6) 49... Kg8 {[%emt 0:00:05]} 50. Qg5+ {[%emt 0:00:23]} Kf8 {[%emt 0:00:04]} 51. Qg2 {[%emt 0:00:32]} Rh7 {[%emt 0:00:51]} 52. Qc2 $18 {[%emt 0:04:48]} Rb7 {[%emt 0:02:37]} 53. h4 {[%emt 0:00:15]} Raa7 {[%emt 0:00:25]} 54. Qd1 {[%emt 0:00:37]} Ra2 {[%emt 0:00:24]} 55. Qc1 {[%emt 0:00:07]} Rh7 {[%emt 0:00:03]} 56. Kh3 {[%emt 0:00:05]} Raa7 {[%emt 0:00:02]} 57. Kg4 {[%emt 0:00:31]} Kf7 {[%emt 0:00:01]} 58. Qb1 {[%emt 0:00:13]} Rh8 {[%emt 0:00:10]} 59. h5 {[%emt 0:00:05]} Kf8 {[%emt 0:00:10]} 60. b5 {[%emt 0:00:36]} Rg8+ {[%emt 0:00:02]} 61. Kh4 {[%emt 0:00:00]} Kf7 1-0

[Event "SWVG Arnold Classic Prestige All 2019"]
[Site "Sandton"]
[Date "2019.05.19"]
[Round "8.11"]
[White "Steyn, Hans"]
[Black "Klevansky, Aron"]
[Result "1/2-1/2"]
[ECO "A23"]
[WhiteElo "1863"]
[BlackElo "1878"]
[Annotator "NA RC"]
[PlyCount "51"]
[EventDate "2019.05.18"]
[EventType "swiss"]
[EventCountry "RSA"]
[SourceTitle "playchess.com"]
[Source "ChessBase"]
[SourceQuality "1"]
[TimeControl "1500+10"]

{[%evp 8,31,4,32767,32767,32767,32767,32767,31,19,33,9,21,58,99,38,102,77,101,100,194,195,32767,105,247,180]} 1. c4 {[%emt 0:00:03]} e5 {[%emt 0:00:00]} 2. g3 {[%emt 0:00:12]} Nf6 {[%emt 0:00:05]} 3. Bg2 {[%emt 0:00:14]} c6 {[%emt 0:00:04]} 4. Nf3 {[%emt 0:00:33]} e4 {[%emt 0:00:55]} 5. Nd4 {[%emt 0:00:20]} d5 {[%emt 0:00:09]} 6. cxd5 {[%emt 0:00:40]} cxd5 {[%emt 0:00:07]} 7. Nc3 {[%emt 0:01:38]} Bc5 {[%emt 0:02:18]} 8. Nb3 {[%emt 0:00:16]} Bb6 {[%emt 0:00:50]} 9. O-O {[%emt 0:00:36]} O-O {[%emt 0:00:21]} 10. d3 {[%emt 0:00:02]} Bf5 {[%emt 0:01:43]} 11. dxe4 {[%emt 0:00:18]} (11. Bg5 $16) 11... dxe4 {[%emt 0:00:14]} (11... Bxe4 $11 12. Bxe4 (12. Nxe4 Nxe4 13. Nd2 Nf6 $14) 12... dxe4) 12. Bg5 {[%emt 0:00:35]} Qxd1 {[%emt 0:04:56]} 13. Rfxd1 {[%emt 0:00:53]} Re8 {[%emt 0:00:45] [#]} (13... Nbd7 $16) 14. Bxf6 $1 {[%emt 0:02:38]} gxf6 {[%emt 0:00:01]} 15. Nd5 {[%emt 0:00:07]} (15. Nd2 $18) 15... Bd8 {[%emt 0:00:14]} (15... Kg7 $16) 16. Nd4 $18 {[%emt 0:00:48]} Bd7 {[%emt 0:01:56]} 17. e3 {[%emt 0:00:47]} Nc6 {[%emt 0:00:34]} 18. Rac1 {[%emt 0:00:06]} Kg7 {[%emt 0:01:28]} 19. Nb5 {[%emt 0:00:18]} Bg4 {[%emt 0:01:55]} 20. Rd2 {[%emt 0:00:33]} Ba5 {[%emt 0:01:47]} 21. Rdc2 {[%emt 0:00:43]} Rad8 {[%emt 0:01:11]} 22. Nbc3 {[%emt 0:01:35]} Bxc3 {[%emt 0:01:04]} 23. Nxc3 {[%emt 0:00:27]} Nb4 {[%emt 0:00:02]} 24. Bxe4 {[%emt 0:00:22]} Nxc2 {[%emt 0:00:20]} 25. Bxc2 {[%emt 0:00:02]} Bf3 {[%emt 0:00:18]} 26. Nb5 {[%emt 0:00:25]} 1/2-1/2